[Event "IV Elllobregat Open Chess Tmnt"]
[Site "Sant Boi de Llobregat, Spain"]
[Date "2023.11.30"]
[Round "1.42"]
[White "Sorensen, Hampus"]
[Black "Romero Pallares, Daniel"]
[Result "1-0"]
[TimeControl "90min/40moves + 15min/end + 30sec from move 1"]
[WhiteFideId "8703884"]
[BlackFideId "32025637"]
[WhiteElo "2479"]
[BlackElo "2271"]

1. Nf3 {[%clk 01:30:18]} {[%emt 00:00:41]} Nf6 {[%clk 01:29:58]} {[%emt
00:01:03]} 2. g3 {[%clk 01:30:38]} {[%emt 00:00:10]} d5 {[%clk 01:30:05]}
{[%emt 00:00:22]} 3. Bg2 {[%clk 01:30:57]} {[%emt 00:00:10]} e6 {[%clk
01:29:32]} {[%emt 00:01:04]} 4. O-O {[%clk 01:31:12]} {[%emt 00:00:15]} Bd6
{[%clk 01:29:13]} {[%emt 00:00:49]} 5. d4 {[%clk 01:22:41]} {[%emt 00:09:01]}
h6 {[%clk 01:28:45]} {[%emt 00:00:58]} 6. c4 {[%clk 01:22:17]} {[%emt
00:00:55]} O-O {[%clk 01:29:01]} {[%emt 00:00:12]} 7. Nc3 {[%clk 01:19:31]}
{[%emt 00:03:17]} Nc6 {[%clk 01:27:44]} {[%emt 00:01:47]} 8. cxd5 {[%clk
01:11:49]} {[%emt 00:08:13]} exd5 {[%clk 01:28:06]} {[%emt 00:00:08]} 9. Nb5
{[%clk 01:12:07]} {[%emt 00:00:12]} Bf5 {[%clk 01:22:39]} {[%emt 00:05:57]} 10.
Nxd6 {[%clk 01:10:22]} {[%emt 00:02:15]} cxd6 {[%clk 01:21:27]} {[%emt
00:01:41]} 11. Bf4 {[%clk 01:09:17]} {[%emt 00:01:35]} Qd7 {[%clk 01:20:02]}
{[%emt 00:01:56]} 12. Qa4 {[%clk 01:02:31]} {[%emt 00:07:15]} Rab8 {[%clk
01:11:10]} {[%emt 00:09:21]} 13. Rfc1 {[%clk 00:55:08]} {[%emt 00:07:54]} b5
{[%clk 01:06:19]} {[%emt 00:05:21]} 14. Qd1 {[%clk 00:55:24]} {[%emt 00:00:14]}
a5 {[%clk 01:05:08]} {[%emt 00:01:41]} 15. Bd2 {[%clk 00:52:36]} {[%emt
00:03:18]} Rfe8 {[%clk 01:00:25]} {[%emt 00:05:13]} 16. Be1 {[%clk 00:52:26]}
{[%emt 00:00:40]} Rbc8 {[%clk 00:56:59]} {[%emt 00:03:56]} 17. e3 {[%clk
00:51:37]} {[%emt 00:01:20]} Be4 {[%clk 00:49:24]} {[%emt 00:08:04]} 18. Bf1
{[%clk 00:48:31]} {[%emt 00:03:36]} Qb7 {[%clk 00:48:04]} {[%emt 00:01:50]} 19.
Qe2 {[%clk 00:42:55]} {[%emt 00:06:06]} Rb8 {[%clk 00:37:36]} {[%emt 00:10:57]}
20. Nd2 {[%clk 00:39:47]} {[%emt 00:03:39]} Bf5 {[%clk 00:35:55]} {[%emt
00:02:11]} 21. Nb3 {[%clk 00:38:45]} {[%emt 00:01:32]} b4 {[%clk 00:32:16]}
{[%emt 00:04:09]} 22. Qa6 {[%clk 00:35:34]} {[%emt 00:03:41]} Qxa6 {[%clk
00:29:34]} {[%emt 00:03:13]} 23. Bxa6 {[%clk 00:36:02]} {[%emt 00:00:02]} Bd7
{[%clk 00:28:15]} {[%emt 00:01:48]} 24. Nd2 {[%clk 00:32:13]} {[%emt 00:04:19]}
Rb6 {[%clk 00:26:21]} {[%emt 00:02:24]} 25. Bd3 {[%clk 00:31:48]} {[%emt
00:00:55]} a4 {[%clk 00:25:06]} {[%emt 00:01:45]} 26. Rc2 {[%clk 00:26:35]}
{[%emt 00:05:43]} g6 {[%clk 00:15:27]} {[%emt 00:10:09]} 27. a3 {[%clk
00:15:36]} {[%emt 00:11:29]} Kg7 {[%clk 00:12:08]} {[%emt 00:03:48]} 28. Rac1
{[%clk 00:11:44]} {[%emt 00:04:23]} h5 {[%clk 00:06:52]} {[%emt 00:05:46]} 29.
Kg2 {[%clk 00:06:03]} {[%emt 00:06:11]} Ng4 {[%clk 00:04:42]} {[%emt 00:02:40]}
30. Nf1 {[%clk 00:04:19]} {[%emt 00:02:14]} bxa3 {[%clk 00:03:49]} {[%emt
00:01:23]} 31. bxa3 {[%clk 00:04:48]} {[%emt 00:00:01]} Rb3 {[%clk 00:03:34]}
{[%emt 00:00:45]} 32. Ba6 {[%clk 00:03:32]} {[%emt 00:01:46]} Nb8 {[%clk
00:02:18]} {[%emt 00:01:46]} 33. Be2 {[%clk 00:04:01]} {[%emt 00:00:01]} Rxa3
{[%clk 00:01:18]} {[%emt 00:01:31]} 34. Bb4 {[%clk 00:04:29]} {[%emt 00:00:02]}
Rb3 {[%clk 00:01:24]} {[%emt 00:00:24]} 35. Bxd6 {[%clk 00:04:52]} {[%emt
00:00:04]} Bf5 {[%clk 00:00:32]} {[%emt 00:01:24]} 36. Ra2 {[%clk 00:04:00]}
{[%emt 00:01:22]} Nd7 {[%clk 00:00:36]} {[%emt 00:00:26]} 37. h3 {[%clk
00:03:53]} {[%emt 00:00:38]} Ngf6 {[%clk 00:00:32]} {[%emt 00:00:33]} 38. Nd2
{[%clk 00:04:22]} {[%emt 00:00:01]} Rb6 {[%clk 00:00:33]} {[%emt 00:00:29]} 39.
Ba3 {[%clk 00:02:12]} {[%emt 00:02:40]} Reb8 {[%clk 00:00:31]} {[%emt
00:00:32]} 40. Bf3 {[%clk 00:16:39]} {[%emt 00:01:02]} R8b7 {[%clk 00:15:32]}
{[%emt 00:00:30]} 41. Bd1 {[%clk 00:12:11]} {[%emt 00:04:58]} Ra6 {[%clk
00:10:01]} {[%emt 00:06:00]} 42. f3 {[%clk 00:12:13]} {[%emt 00:00:29]} Nb8
{[%clk 00:04:17]} {[%emt 00:06:14]} 43. g4 {[%clk 00:11:11]} {[%emt 00:01:32]}
Be6 {[%clk 00:04:25]} {[%emt 00:00:23]} 44. Rac2 {[%clk 00:08:30]} {[%emt
00:03:11]} Rb3 {[%clk 00:03:21]} {[%emt 00:01:33]} 45. Rc3 {[%clk 00:08:19]}
{[%emt 00:00:41]} Rxc3 {[%clk 00:03:41]} {[%emt 00:00:10]} 46. Rxc3 {[%clk
00:08:48]} {[%emt 00:00:01]} Nc6 {[%clk 00:02:28]} {[%emt 00:01:43]} 47. Kf2
{[%clk 00:07:13]} {[%emt 00:02:05]} Na7 {[%clk 00:02:09]} {[%emt 00:00:49]} 48.
Be2 {[%clk 00:06:32]} {[%emt 00:01:11]} Rb6 {[%clk 00:02:30]} {[%emt 00:00:09]}
49. Rc5 {[%clk 00:05:36]} {[%emt 00:01:27]} Nc6 {[%clk 00:01:52]} {[%emt
00:01:08]} 50. Rb5 {[%clk 00:05:52]} {[%emt 00:00:14]} Nd7 {[%clk 00:00:53]}
{[%emt 00:01:28]} 51. gxh5 {[%clk 00:04:36]} {[%emt 00:01:47]} gxh5 {[%clk
00:01:19]} {[%emt 00:00:04]} 52. h4 {[%clk 00:05:02]} {[%emt 00:00:03]} Kf6
{[%clk 00:00:36]} {[%emt 00:01:12]} 53. Nb1 {[%clk 00:04:58]} {[%emt 00:00:35]}
Na7 {[%clk 00:00:36]} {[%emt 00:00:31]} 54. Rxb6 {[%clk 00:05:12]} {[%emt
00:00:16]} Nxb6 {[%clk 00:01:04]} 55. Bc5 {[%clk 00:05:18]} {[%emt 00:00:24]}
Nac8 {[%clk 00:01:13]} {[%emt 00:00:21]} 56. Nc3 {[%clk 00:04:55]} {[%emt
00:00:54]} Bd7 {[%clk 00:01:07]} {[%emt 00:00:36]} 57. Bd1 {[%clk 00:02:39]}
{[%emt 00:02:46]} Bc6 {[%clk 00:01:23]} {[%emt 00:00:13]} 58. Bc2 {[%clk
00:02:37]} {[%emt 00:00:31]} Bd7 {[%clk 00:01:17]} {[%emt 00:00:37]} 59. Kg3
{[%clk 00:02:31]} {[%emt 00:00:36]} Bc6 {[%clk 00:00:49]} {[%emt 00:00:58]} 60.
Kf4 {[%clk 00:02:50]} {[%emt 00:00:11]} Bd7 {[%clk 00:00:34]} {[%emt 00:00:46]}
61. Bd1 {[%clk 00:02:46]} {[%emt 00:00:33]} Bc6 {[%clk 00:00:32]} {[%emt
00:00:33]} 62. e4 {[%clk 00:02:59]} {[%emt 00:00:16]} Kg6 {[%clk 00:00:31]}
{[%emt 00:00:31]} 63. exd5 {[%clk 00:01:21]} {[%emt 00:02:08]} Bxd5 {[%clk
00:00:37]} {[%emt 00:00:24]} 64. Nxa4 {[%clk 00:01:42]} {[%emt 00:00:10]} Nd7
{[%clk 00:00:41]} {[%emt 00:00:25]} 65. Bc2+ {[%clk 00:01:45]} {[%emt
00:00:28]} Kf6 {[%emt 00:00:21]} 66. Nc3 {[%clk 00:01:54]} Bc4 {[%clk
00:00:42]} {[%emt 00:00:56]} 67. Ne4+ {[%clk 00:01:52]} {[%emt 00:00:33]} Kg7
{[%clk 00:01:06]} {[%emt 00:00:06]} 68. Ng3 {[%clk 00:01:51]} {[%emt 00:00:31]}
Nf6 {[%clk 00:01:04]} {[%emt 00:00:32]} 69. Kg5 {[%clk 00:01:26]} {[%emt
00:00:55]} Nh7+ {[%clk 00:01:04]} {[%emt 00:00:30]} 70. Kxh5 {[%clk 00:01:45]}
{[%emt 00:00:11]} Bd5 {[%clk 00:01:20]} {[%emt 00:00:13]} 71. Kg4 {[%clk
00:01:42]} {[%emt 00:00:34]} Be6+ {[%clk 00:01:22]} {[%emt 00:00:28]} 72. Kf4
{[%clk 00:02:00]} {[%emt 00:00:12]} Nf6 {[%clk 00:01:38]} {[%emt 00:00:13]} 73.
Nf5+ {[%clk 00:02:09]} {[%emt 00:00:21]} Kg8 {[%clk 00:01:49]} {[%emt
00:00:20]} 74. Ne3 {[%clk 00:01:52]} {[%emt 00:00:48]} Kg7 {[%clk 00:01:58]}
{[%emt 00:00:20]} 75. Bf5 {[%clk 00:02:09]} {[%emt 00:00:13]} Nd7 {[%clk
00:01:48]} {[%emt 00:00:39]} 76. Kg5 {[%clk 00:01:28]} {[%emt 00:01:12]} Ncb6
{[%clk 00:01:16]} {[%emt 00:01:02]} 77. Bxe6 {[%clk 00:01:16]} {[%emt
00:00:43]} fxe6 {[%clk 00:01:41]} {[%emt 00:00:04]} 78. Bxb6 {[%clk 00:01:41]}
{[%emt 00:00:05]} Nxb6 {[%clk 00:02:07]} {[%emt 00:00:04]} 79. h5 {[%clk
00:02:03]} {[%emt 00:00:09]} Nd7 {[%clk 00:02:24]} {[%emt 00:00:12]} 80. Ng4
{[%clk 00:02:11]} {[%emt 00:00:22]} 1-0

[Event "IV Elllobregat Open Chess Tmnt"]
[Site "Sant Boi de Llobregat, Spain"]
[Date "2023.11.30"]
[Round "1.43"]
[White "Averin, Nikolay"]
[Black "Lopez Martinez, Josep Manuel"]
[Result "0-1"]
[TimeControl "90min/40moves + 15min/end + 30sec from move 1"]
[WhiteFideId "24250473"]
[BlackFideId "2212943"]
[WhiteElo "2270"]
[BlackElo "2474"]

1. e4 {[%clk 01:17:12]} {[%emt 00:13:40]} c5 {[%clk 01:30:21]} {[%emt
00:00:45]} 2. Nf3 {[%clk 01:17:38]} {[%emt 00:00:05]} e6 {[%clk 01:29:49]}
{[%emt 00:01:01]} 3. d4 {[%clk 01:18:06]} {[%emt 00:00:03]} cxd4 {[%clk
01:30:08]} {[%emt 00:00:11]} 4. Nxd4 {[%clk 01:18:33]} {[%emt 00:00:03]} a6
{[%clk 01:30:08]} {[%emt 00:00:30]} 5. Nc3 {[%clk 01:17:47]} {[%emt 00:01:16]}
Qc7 {[%clk 01:24:54]} {[%emt 00:05:44]} 6. Qf3 {[%clk 01:18:02]} {[%emt
00:00:14]} Nf6 {[%clk 01:22:45]} {[%emt 00:02:39]} 7. Qg3 {[%clk 01:18:13]}
{[%emt 00:00:20]} d6 {[%clk 01:22:13]} {[%emt 00:01:02]} 8. Be3 {[%clk
01:16:27]} {[%emt 00:02:16]} h5 {[%clk 01:19:41]} {[%emt 00:03:02]} 9. f3
{[%clk 01:15:54]} {[%emt 00:01:04]} e5 {[%clk 01:17:19]} {[%emt 00:02:52]} 10.
Nb3 {[%clk 01:15:55]} {[%emt 00:00:29]} Be6 {[%clk 01:17:25]} {[%emt 00:00:23]}
11. O-O-O {[%clk 01:14:17]} {[%emt 00:02:08]} Nbd7 {[%clk 01:17:34]} {[%emt
00:00:21]} 12. Kb1 {[%clk 01:09:45]} {[%emt 00:05:02]} Rc8 {[%clk 01:16:25]}
{[%emt 00:01:38]} 13. Qf2 {[%clk 01:07:19]} {[%emt 00:02:57]} Be7 {[%clk
01:11:04]} {[%emt 00:05:51]} 14. Rd2 {[%clk 01:05:52]} {[%emt 00:01:58]} g6
{[%clk 01:07:18]} {[%emt 00:04:15]} 15. Be2 {[%clk 01:02:55]} {[%emt 00:03:27]}
b5 {[%clk 01:05:20]} {[%emt 00:02:28]} 16. Rc1 {[%clk 00:51:28]} {[%emt
00:11:57]} Qb7 {[%clk 00:53:15]} {[%emt 00:12:34]} 17. Rcd1 {[%clk 00:41:09]}
{[%emt 00:10:49]} Rxc3 {[%clk 00:49:21]} {[%emt 00:04:25]} 18. bxc3 {[%clk
00:41:37]} {[%emt 00:00:02]} Qc7 {[%clk 00:49:10]} {[%emt 00:00:41]} 19. Bf1
{[%clk 00:18:17]} {[%emt 00:23:50]} O-O {[%clk 00:45:38]} {[%emt 00:04:01]} 20.
h3 {[%clk 00:16:30]} {[%emt 00:02:18]} Rb8 {[%clk 00:45:51]} {[%emt 00:00:17]}
21. g4 {[%clk 00:11:22]} {[%emt 00:05:38]} a5 {[%clk 00:45:57]} {[%emt
00:00:23]} 22. g5 {[%clk 00:11:13]} {[%emt 00:00:40]} Nh7 {[%clk 00:44:13]}
{[%emt 00:02:14]} 23. h4 {[%clk 00:05:08]} {[%emt 00:06:36]} a4 {[%clk
00:44:26]} {[%emt 00:00:16]} 24. Nc1 {[%clk 00:05:29]} {[%emt 00:00:08]} Qxc3
{[%clk 00:42:14]} {[%emt 00:02:42]} 25. Rd3 {[%clk 00:04:12]} {[%emt 00:01:47]}
Qc7 {[%clk 00:42:05]} {[%emt 00:00:39]} 26. Qd2 {[%clk 00:01:46]} {[%emt
00:02:57]} b4 {[%clk 00:38:16]} {[%emt 00:04:18]} 27. Rxd6 {[%clk 00:00:48]}
{[%emt 00:01:29]} b3 {[%clk 00:37:44]} {[%emt 00:01:02]} 28. axb3 {[%clk
00:00:34]} {[%emt 00:00:44]} axb3 {[%clk 00:38:03]} {[%emt 00:00:10]} 29. c4
{[%clk 00:00:40]} {[%emt 00:00:25]} Bxd6 {[%clk 00:33:59]} {[%emt 00:04:34]} 30.
Qxd6 {[%clk 00:01:09]} {[%emt 00:00:02]} Qa5 {[%clk 00:33:52]} {[%emt
00:00:36]} 31. Bd2 {[%clk 00:00:38]} {[%emt 00:01:02]} Qa7 {[%clk 00:30:54]}
{[%emt 00:03:27]} 32. Bc3 {[%clk 00:00:46]} {[%emt 00:00:22]} Qf2 {[%clk
00:28:25]} {[%emt 00:02:58]} 33. Qd3 {[%clk 00:00:31]} {[%emt 00:00:46]} Qxh4
{[%clk 00:24:42]} {[%emt 00:04:12]} 34. c5 {[%clk 00:00:31]} {[%emt 00:00:31]}
Nxc5 {[%clk 00:24:10]} {[%emt 00:01:02]} 35. Qd6 {[%clk 00:00:41]} {[%emt
00:00:20]} Nd7 {[%clk 00:24:15]} {[%emt 00:00:25]} 36. Qxb8+ {[%clk 00:00:33]}
{[%emt 00:00:38]} Nxb8 {[%clk 00:24:18]} {[%emt 00:00:27]} 37. Rd8+ {[%clk
00:01:02]} {[%emt 00:00:01]} Nf8 {[%clk 00:17:57]} {[%emt 00:06:51]} 38. Rxb8
{[%clk 00:01:25]} {[%emt 00:00:07]} Qh2 {[%clk 00:15:23]} {[%emt 00:03:04]} 39.
Be2 {[%clk 00:00:32]} {[%emt 00:01:24]} Kg7 {[%clk 00:15:17]} {[%emt 00:00:34]}
40. f4 {[%clk 00:15:31]} {[%emt 00:00:33]} Nd7 {[%clk 00:30:10]} {[%emt
00:00:36]} 41. Rb4 {[%clk 00:07:00]} {[%emt 00:09:01]} Qxf4 {[%clk 00:29:19]}
{[%emt 00:01:20]} 42. Nd3 {[%clk 00:07:27]} {[%emt 00:00:04]} Qxg5 {[%clk
00:28:57]} {[%emt 00:00:52]} 0-1

[Event "IV Elllobregat Open Chess Tmnt"]
[Site "Sant Boi de Llobregat, Spain"]
[Date "2023.11.30"]
[Round "1.44"]
[White "Gines Esteo, Pedro Antonio"]
[Black "Boraso, Alessio"]
[Result "1-0"]
[TimeControl "90min/40moves + 15min/end + 30sec from move 1"]
[WhiteFideId "32080190"]
[BlackFideId "848077"]
[WhiteElo "2471"]
[BlackElo "2270"]

1. Nf3 {[%clk 01:30:48]} {[%emt 00:00:11]} d5 {[%clk 01:30:36]} {[%emt
00:00:24]} 2. g3 {[%clk 01:31:10]} {[%emt 00:00:08]} g6 {[%clk 01:30:51]}
{[%emt 00:00:15]} 3. Bg2 {[%clk 01:27:48]} {[%emt 00:03:52]} Bg7 {[%clk
01:30:55]} {[%emt 00:00:26]} 4. d4 {[%clk 01:28:09]} {[%emt 00:00:09]} Nf6
{[%clk 01:30:43]} {[%emt 00:00:42]} 5. O-O {[%clk 01:28:25]} {[%emt 00:00:14]}
O-O {[%clk 01:30:45]} {[%emt 00:00:28]} 6. b3 {[%clk 01:26:07]} {[%emt
00:02:48]} c5 {[%clk 01:22:22]} {[%emt 00:08:53]} 7. Bb2 {[%clk 01:26:02]}
{[%emt 00:00:35]} cxd4 {[%clk 01:14:02]} {[%emt 00:08:50]} 8. Nxd4 {[%clk
01:24:49]} {[%emt 00:01:43]} Nc6 {[%clk 01:13:28]} {[%emt 00:01:03]} 9. c4
{[%clk 01:11:58]} {[%emt 00:13:21]} dxc4 {[%clk 01:07:28]} {[%emt 00:06:31]} 10.
Nxc6 {[%clk 00:56:31]} {[%emt 00:15:56]} bxc6 {[%clk 01:07:48]} {[%emt
00:00:11]} 11. bxc4 {[%clk 00:52:33]} {[%emt 00:04:29]} Qa5 {[%clk 00:55:06]}
{[%emt 00:13:11]} 12. Qc2 {[%clk 00:45:44]} {[%emt 00:07:19]} Qh5 {[%clk
00:51:28]} {[%emt 00:04:08]} 13. Nd2 {[%clk 00:42:55]} {[%emt 00:03:19]} Rb8
{[%clk 00:47:23]} {[%emt 00:04:35]} 14. Nb3 {[%clk 00:37:49]} {[%emt 00:05:36]}
Bf5 {[%clk 00:37:27]} {[%emt 00:10:26]} 15. e4 {[%clk 00:30:54]} {[%emt
00:07:25]} Nxe4 {[%clk 00:27:08]} {[%emt 00:10:49]} 16. Bxg7 {[%clk 00:31:01]}
{[%emt 00:00:23]} Nf6 {[%clk 00:25:20]} {[%emt 00:02:18]} 17. Qc3 {[%clk
00:31:07]} {[%emt 00:00:24]} Kxg7 {[%clk 00:25:35]} {[%emt 00:00:16]} 18. Rae1
{[%clk 00:29:24]} {[%emt 00:02:12]} Rb7 {[%clk 00:20:21]} {[%emt 00:05:43]} 19.
Nc5 {[%clk 00:16:53]} {[%emt 00:13:01]} Rc7 {[%clk 00:19:23]} {[%emt 00:01:29]}
20. Qe5 {[%emt 00:01:03]} Rfc8 {[%clk 00:18:58]} 21. h3 {[%clk 00:17:32]}
{[%emt 00:00:12]} Bc2 {[%clk 00:13:30]} {[%emt 00:05:58]} 22. Qd4 {[%clk
00:16:14]} {[%emt 00:01:47]} Kg8 {[%clk 00:05:44]} {[%emt 00:08:17]} 23. g4
{[%clk 00:13:55]} {[%emt 00:02:48]} Qh4 {[%clk 00:05:13]} {[%emt 00:01:02]} 24.
Qd2 {[%clk 00:04:49]} {[%emt 00:09:36]} Bf5 {[%clk 00:03:27]} {[%emt 00:02:16]}
25. gxf5 {[%clk 00:04:14]} {[%emt 00:01:05]} gxf5 {[%clk 00:03:55]} {[%emt
00:00:02]} 26. Re5 {[%clk 00:02:52]} {[%emt 00:01:52]} e6 {[%clk 00:04:03]}
{[%emt 00:00:22]} 27. Rd1 {[%clk 00:01:08]} {[%emt 00:02:15]} Kh8 {[%clk
00:04:20]} {[%emt 00:00:13]} 28. Qd4 {[%clk 00:00:39]} {[%emt 00:00:59]} Qh6
{[%clk 00:04:37]} {[%emt 00:00:12]} 29. Re3 {[%clk 00:00:43]} {[%emt 00:00:25]}
Rg8 {[%clk 00:02:57]} {[%emt 00:02:11]} 30. Kh1 {[%clk 00:01:01]} {[%emt
00:00:12]} Rcc8 {[%clk 00:03:05]} {[%emt 00:00:22]} 31. Qe5 {[%clk 00:00:46]}
{[%emt 00:00:45]} Rg7 {[%clk 00:03:03]} {[%emt 00:00:32]} 32. Rg3 {[%clk
00:00:32]} {[%emt 00:00:44]} Ng4 {[%clk 00:02:38]} {[%emt 00:00:54]} 33. Qb2
{[%clk 00:00:39]} {[%emt 00:00:24]} Rcg8 {[%clk 00:01:05]} {[%emt 00:02:03]} 34.
Kg1 {[%clk 00:00:32]} {[%emt 00:00:38]} Nxf2 {[%clk 00:00:41]} {[%emt
00:00:54]} 35. Qxg7+ {[%clk 00:00:34]} {[%emt 00:00:28]} Qxg7 {[%clk 00:01:02]}
{[%emt 00:00:09]} 36. Rxg7 {[%clk 00:00:58]} {[%emt 00:00:05]} Nxd1 {[%clk
00:01:18]} {[%emt 00:00:15]} 37. Rxg8+ {[%clk 00:00:32]} {[%emt 00:00:56]} Kxg8
{[%clk 00:01:46]} 38. Bxc6 {[%clk 00:00:47]} {[%emt 00:00:15]} Kf8 {[%clk
00:00:38]} {[%emt 00:01:38]} 39. Na6 {[%clk 00:00:33]} {[%emt 00:00:44]} Ke7
{[%clk 00:00:41]} {[%emt 00:00:26]} 40. c5 {[%clk 00:15:49]} {[%emt 00:00:16]}
e5 {[%clk 00:15:34]} {[%emt 00:00:36]} 41. Bb7 {[%clk 00:15:56]} {[%emt
00:00:23]} e4 {[%clk 00:14:57]} {[%emt 00:01:07]} 42. c6 {[%clk 00:15:48]}
{[%emt 00:00:38]} e3 {[%clk 00:15:02]} {[%emt 00:00:24]} 43. Kf1 {[%clk
00:16:10]} {[%emt 00:00:09]} 1-0

[Event "IV Elllobregat Open Chess Tmnt"]
[Site "Sant Boi de Llobregat, Spain"]
[Date "2023.11.30"]
[Round "1.45"]
[White "Assylov, Miras"]
[Black "Kaasen, Tor Fredrik"]
[Result "0-1"]
[TimeControl "90min/40moves + 15min/end + 30sec from move 1"]
[WhiteFideId "13728873"]
[BlackFideId "1516647"]
[WhiteElo "2267"]
[BlackElo "2471"]

1. e4 {[%clk 01:30:56]} {[%emt 00:00:03]} c5 {[%clk 01:30:19]} {[%emt
00:00:42]} 2. Nf3 {[%clk 01:31:12]} {[%emt 00:00:14]} d6 {[%clk 01:30:21]}
{[%emt 00:00:28]} 3. d4 {[%clk 01:31:33]} {[%emt 00:00:10]} cxd4 {[%clk
01:30:21]} {[%emt 00:00:29]} 4. Nxd4 {[%clk 01:31:54]} {[%emt 00:00:08]} Nf6
{[%clk 01:30:24]} {[%emt 00:00:28]} 5. Nc3 {[%clk 01:32:14]} {[%emt 00:00:10]}
a6 {[%clk 01:30:18]} {[%emt 00:00:36]} 6. Be2 {[%clk 01:31:04]} {[%emt
00:01:40]} e6 {[%clk 01:29:36]} {[%emt 00:01:10]} 7. Be3 {[%clk 01:27:57]}
{[%emt 00:03:39]} Qc7 {[%clk 01:29:25]} {[%emt 00:00:41]} 8. g4 {[%clk
01:17:57]} {[%emt 00:10:30]} d5 {[%clk 01:27:34]} {[%emt 00:02:20]} 9. exd5
{[%clk 01:09:47]} {[%emt 00:08:41]} Bb4 {[%clk 01:27:36]} {[%emt 00:00:23]} 10.
Bd2 {[%clk 01:07:53]} {[%emt 00:02:30]} Bxc3 {[%clk 01:22:43]} {[%emt
00:05:22]} 11. Bxc3 {[%clk 01:07:09]} {[%emt 00:01:14]} Nxd5 {[%clk 01:22:17]}
{[%emt 00:00:55]} 12. Bd2 {[%clk 01:01:03]} {[%emt 00:06:37]} O-O {[%clk
01:17:53]} {[%emt 00:04:52]} 13. c3 {[%clk 00:50:03]} {[%emt 00:11:32]} Rd8
{[%clk 01:14:07]} {[%emt 00:04:13]} 14. Bf3 {[%clk 00:34:33]} {[%emt 00:16:03]}
e5 {[%clk 01:09:22]} {[%emt 00:05:14]} 15. Ne2 {[%clk 00:31:42]} {[%emt
00:03:22]} e4 {[%clk 00:56:48]} {[%emt 00:13:03]} 16. Bxe4 {[%clk 00:31:03]}
{[%emt 00:01:10]} Bxg4 {[%clk 00:53:58]} {[%emt 00:03:18]} 17. f3 {[%clk
00:27:53]} {[%emt 00:03:42]} Nf6 {[%clk 00:45:28]} {[%emt 00:09:00]} 18. Qc2
{[%clk 00:22:58]} {[%emt 00:05:25]} Nxe4 {[%clk 00:26:43]} {[%emt 00:19:15]} 19.
Qxe4 {[%clk 00:23:13]} {[%emt 00:00:15]} Qd7 {[%clk 00:25:24]} {[%emt
00:01:49]} 20. Bg5 {[%clk 00:12:33]} {[%emt 00:11:10]} Bf5 {[%clk 00:24:34]}
{[%emt 00:01:19]} 21. Qd4 {[%clk 00:12:37]} {[%emt 00:00:26]} Re8 {[%clk
00:17:44]} {[%emt 00:07:18]} 22. Qxd7 {[%clk 00:09:11]} {[%emt 00:04:00]} Nxd7
{[%clk 00:18:07]} {[%emt 00:00:06]} 23. Kd2 {[%clk 00:06:21]} {[%emt 00:03:20]}
Ne5 {[%clk 00:11:49]} {[%emt 00:06:47]} 24. Nd4 {[%clk 00:06:41]} {[%emt
00:00:10]} Bg6 {[%clk 00:08:07]} {[%emt 00:04:11]} 25. Rae1 {[%clk 00:04:36]}
{[%emt 00:02:36]} f6 {[%clk 00:06:53]} {[%emt 00:01:45]} 26. Bh4 {[%clk
00:04:51]} {[%emt 00:00:15]} Red8 {[%clk 00:06:14]} {[%emt 00:01:09]} 27. Ref1
{[%clk 00:02:19]} {[%emt 00:03:02]} Nc4+ {[%clk 00:05:48]} {[%emt 00:00:57]} 28.
Kc1 {[%clk 00:02:40]} {[%emt 00:00:09]} Rac8 {[%clk 00:05:58]} {[%emt
00:00:18]} 29. Rf2 {[%clk 00:01:51]} {[%emt 00:01:20]} Ne5 {[%clk 00:05:36]}
{[%emt 00:00:52]} 30. Kd1 {[%clk 00:00:50]} {[%emt 00:01:31]} Nd3 {[%clk
00:05:20]} {[%emt 00:00:45]} 31. f4 {[%clk 00:00:32]} {[%emt 00:00:48]} Rxd4
{[%clk 00:05:07]} {[%emt 00:00:43]} 0-1